fUST/lending_fUST_20240909
["ID","MTS","AMOUNT","RATE_DAILY","PERIOD"]
[337600085,1725888639197,-1873.9368198,0.00035605,2]
[337600086,1725888639206,-155701.461475,0.00035606,5]
[337600087,1725888639216,-151.0,0.00035606,14]
[337600088,1725888639226,-500.0,0.00035616,14]
[337600089,1725888639235,-500.0,0.00035616,14]
[337600090,1725888639244,-500.0,0.00035616,14]
[337600091,1725888639254,-500.0,0.00035616,14]
[337600092,1725888639263,-500.0,0.00035616,14]
[337600093,1725888639273,-500.0,0.00035616,14]
[337600094,1725888639283,-500.0,0.00035616,14]
[337600095,1725888639293,-498.72045794,0.00035616,14]
[337600096,1725888639302,-500.0,0.00035616,14]
[337600097,1725888639311,-500.0,0.00035616,14]
[337600098,1725888639321,-500.0,0.00035616,14]
[337600099,1725888639331,-500.0,0.00035616,14]
[337600100,1725888639340,-500.0,0.00035616,14]
[337600102,1725888639350,-500.0,0.00035616,14]
[337600104,1725888639359,-500.0,0.00035616,14]
[337600106,1725888639369,-500.0,0.00035616,14]
[337600108,1725888639378,-500.0,0.00035616,14]
[337600109,1725888639387,-299.96,0.00035616,14]
[337600110,1725888639397,-594.78,0.00035616,14]
[337600111,1725888639406,-518.01197842,0.00035616,14]
[337600112,1725888639416,-500.0,0.00035616,14]
[337600113,1725888639425,-533.92,0.00035616,14]
[337600114,1725888639437,-500.0,0.00035616,14]
[337600115,1725888639447,-500.0,0.00035616,14]
[337600116,1725888639457,-500.0,0.00035616,14]
[337600117,1725888639467,-932.83,0.00035616,14]
[337600118,1725888639476,-932.83,0.00035616,14]
[337600119,1725888639486,-500.0,0.00035616,14]
[337600120,1725888639495,-523.804249,0.00035616,14]
[337600121,1725888639504,-500.0,0.00035616,14]
[337600122,1725888639514,-500.0,0.00035616,14]
[337600123,1725888639524,-500.0,0.00035616,14]
[337600124,1725888639533,-500.0,0.00035616,14]
[337600125,1725888639543,-500.0,0.00035616,14]
[337600126,1725888639555,-500.0,0.00035616,14]
[337600127,1725888639565,-500.0,0.00035616,14]
[337600128,1725888639585,-500.0,0.00035616,14]
[337600129,1725888639597,-1615.92,0.00035616,14]
[337600130,1725888639607,-522.7,0.00035616,14]
[337600131,1725888639618,-500.0,0.00035616,14]
[337600132,1725888639630,-500.0,0.00035616,14]
[337600133,1725888639639,-1097.42,0.00035616,14]
[337600134,1725888639650,-500.0,0.00035616,14]
[337600135,1725888639666,-692.06,0.00035616,14]
[337600136,1725888639675,-500.0,0.00035616,14]
[337600137,1725888639688,-1848.23,0.00035616,14]
[337600138,1725888639699,-500.0,0.00035616,14]
[337600139,1725888639710,-500.0,0.00035616,14]
[337600140,1725888639720,-500.0,0.00035616,14]
[337600141,1725888639731,-500.0,0.00035616,14]
[337600142,1725888639743,-500.4463617,0.00035616,14]
[337600143,1725888639753,-500.0,0.00035616,14]
[337600144,1725888639763,-500.0,0.00035616,7]
[337600145,1725888639773,-500.0,0.00035616,2]
[337600146,1725888639783,-500.0,0.00035616,14]
[337600147,1725888639793,-500.0,0.00035616,14]
[337600148,1725888639803,-725.17,0.00035616,14]
[337600149,1725888639812,-500.0,0.00035616,14]
[337600150,1725888639822,-596.57861436,0.00035616,14]
[337600151,1725888639832,-512.78502997,0.00035616,14]
[337600152,1725888639842,-500.0,0.00035616,14]
[337600153,1725888639852,-1705.73,0.00035616,14]
[337600154,1725888639863,-500.0,0.00035616,14]
[337600155,1725888639873,-180.63098617,0.00035616,14]
[337600156,1725888640089,-500.0,0.00035616,14]
[337600157,1725888640102,-500.0,0.00035616,14]
[337600158,1725888640112,-501.81241,0.00035616,14]
[337600159,1725888640122,-500.0,0.00035616,14]
[337600160,1725888640136,-500.0,0.00035616,14]
[337600161,1725888640146,-568.01910834,0.00035616,14]
[337600162,1725888640157,-502.39211463,0.00035616,14]
[337600163,1725888640167,-1688.15,0.00035616,14]
[337600164,1725888640177,-151.975802,0.00035616,14]
[337600165,1725888640188,-500.0,0.00035616,14]
[337600166,1725888640198,-500.0,0.00035616,14]
[337600167,1725888640208,-500.0,0.00035616,14]
[337600168,1725888640217,-479.321179,0.00035616,14]
[337600169,1725888640226,-151.0,0.00035616,14]
[337600170,1725888640236,-479.321179,0.00035616,14]
[337600171,1725888640246,-500.0,0.00035616,14]
[337600172,1725888640255,-501.62178188,0.00035616,14]
[337600174,1725888640265,-910.99,0.00035616,14]
[337600175,1725888640274,-771.28,0.00035616,14]
[337600176,1725888640284,-774.99,0.00035616,14]
[337600177,1725888640293,-502.1513624,0.00035616,14]
[337600178,1725888640304,-221.380265,0.00035616,14]
[337600179,1725888640315,-1622.17,0.00035616,14]
[337600180,1725888640325,-500.0,0.00035616,14]
[337600181,1725888640334,-221.380265,0.00035616,14]
[337600182,1725888640345,-500.0,0.00035616,14]
[337600183,1725888640354,-500.0,0.00035616,14]
[337600184,1725888640364,-500.0,0.00035616,14]
[337600185,1725888640373,-500.0,0.00035616,14]
[337600186,1725888640383,-500.0,0.00035616,14]
[337600187,1725888640394,-500.0,0.00035616,14]
[337600188,1725888640405,-502.66399721,0.00035616,14]
[337600189,1725888640415,-500.0,0.00035616,14]
[337600190,1725888640425,-502.27210797,0.00035616,14]
[337600191,1725888640437,-500.0,0.00035616,14]
[337600192,1725888640447,-500.0,0.00035616,14]
[337600193,1725888640457,-151.0,0.00035616,14]
[337600194,1725888640467,-302.3,0.00035616,7]
[337600195,1725888640477,-645.18,0.00035616,14]
[337600196,1725888640488,-500.0,0.00035616,14]
[337600197,1725888640500,-500.0,0.00035616,14]
[337600198,1725888640509,-500.0,0.00035616,14]
[337600199,1725888640518,-1643.4,0.00035616,14]
[337600200,1725888640528,-500.0,0.00035616,14]
[337600201,1725888640538,-502.17225633,0.00035616,14]
[337600202,1725888640548,-654.56,0.00035616,14]
[337600203,1725888640557,-500.0,0.00035616,14]
[337600204,1725888640567,-184.944685,0.00035616,14]
[337600205,1725888640580,-500.0,0.00035616,14]
[337600206,1725888640590,-2570.79,0.00035616,30]
[337600207,1725888640600,-2210.56,0.00035616,14]
[337600208,1725888640610,-644.58,0.00035616,14]
[337600209,1725888640620,-579.24,0.00035616,14]
[337600210,1725888640632,-217.665348,0.00035616,14]
[337600211,1725888640642,-1451.27,0.00035616,14]
[337600212,1725888640654,-500.0,0.00035616,14]
[337600213,1725888640665,-500.0,0.00035616,14]
[337600214,1725888640674,-217.665348,0.00035616,14]
[337600215,1725888640687,-500.0,0.00035616,14]
[337600216,1725888640697,-152.065709,0.00035616,14]
[337600217,1725888640707,-500.0,0.00035616,14]
[337600218,1725888640716,-500.0,0.00035616,14]
[337600219,1725888640728,-525.69215942,0.00035616,14]
[337600220,1725888640738,-500.0,0.00035616,14]
[337600221,1725888640749,-500.0,0.00035616,14]
[337600222,1725888640759,-500.0,0.00035616,14]
[337600223,1725888640770,-3962.868403,0.00035616,14]
[337600224,1725888640780,-500.0,0.00035616,14]
[337600225,1725888640789,-3962.868403,0.00035616,14]
[337600226,1725888640799,-448.34734926,0.00035616,14]
[337600227,1725888640809,-1545.68,0.00035616,14]
[337600228,1725888640818,-500.0,0.00035616,14]
[337600229,1725888640828,-511.21213967,0.00035616,14]
[337600230,1725888640838,-500.0,0.00035616,14]
[337600231,1725888640849,-502.35896847,0.00035616,14]
[337600232,1725888640859,-513.66900791,0.00035616,14]
[337600233,1725888640868,-500.0,0.00035616,14]
[337600234,1725888640878,-501.45512182,0.00035616,14]
[337600235,1725888640888,-500.0,0.00035616,14]
[337600236,1725888640899,-500.0,0.00035616,14]
[337600237,1725888640908,-619.35,0.00035616,14]
[337600238,1725888640918,-419.170424,0.00035616,14]
[337600239,1725888640929,-419.170424,0.00035616,14]
[337600240,1725888640941,-500.0,0.00035616,14]
[337600241,1725888640952,-1882.7,0.00035616,14]
[337600242,1725888640962,-724.08,0.00035616,14]
[337600243,1725888640971,-500.0,0.00035616,14]
[337600244,1725888640980,-500.0,0.00035616,14]
[337600245,1725888640990,-500.0,0.00035616,14]
[337600246,1725888641000,-500.0,0.00035616,14]
[337600247,1725888641009,-500.0,0.00035616,14]
[337600248,1725888641019,-327.273999,0.00035616,14]
[337600249,1725888641029,-152.646701,0.00035616,14]
[337600250,1725888641038,-327.273999,0.00035616,14]
[337600251,1725888641048,-625.66,0.00035616,14]
[337600252,1725888641059,-500.0,0.00035616,14]
[337600253,1725888641069,-612.33,0.00035616,14]
[337600254,1725888641079,-695.38,0.00035616,14]
[337600255,1725888641089,-500.0,0.00035616,14]
[337600256,1725888641099,-500.0,0.00035616,14]
[337600257,1725888641109,-513.24691996,0.00035616,14]
[337600258,1725888641121,-500.0,0.00035616,14]
[337600259,1725888641133,-500.0,0.00035616,14]
[337600260,1725888641144,-555.93,0.00035616,14]
[337600261,1725888641154,-501.53743628,0.00035616,14]
[337600262,1725888641164,-503.12,0.00035616,14]
[337600263,1725888641174,-500.0,0.00035616,14]
[337600264,1725888641184,-500.0,0.00035616,14]
[337600265,1725888641194,-500.0,0.00035616,14]
[337600266,1725888641203,-182.516464,0.00035616,14]
[337600267,1725888641212,-500.0,0.00035616,14]
[337600268,1725888641223,-500.0,0.00035616,14]
[337600269,1725888641233,-500.0,0.00035616,14]
[337600270,1725888641243,-500.0,0.00035616,14]
[337600271,1725888641254,-500.0,0.00035616,14]
[337600272,1725888641265,-1687.17,0.00035616,14]
[337600273,1725888641274,-500.0,0.00035616,14]
[337600274,1725888641284,-903.52,0.00035616,14]
[337600275,1725888641294,-378.6515039,0.00035616,14]
[337600276,1725888641303,-500.0,0.00035616,14]
[337600277,1725888641313,-896.05,0.00035616,14]
[337600278,1725888641322,-577.38,0.00035616,14]
[337600279,1725888641332,-577.38,0.00035616,14]
[337600280,1725888641341,-500.0,0.00035616,14]
[337600281,1725888641352,-500.0,0.00035616,14]
[337600282,1725888641362,-501.4238633,0.00035616,14]
[337600283,1725888641372,-2217.94,0.00035616,14]
[337600284,1725888641382,-500.0,0.00035616,14]
[337600285,1725888641392,-501.36189541,0.00035616,14]
[337600286,1725888641402,-500.0,0.00035616,14]
[337600287,1725888641411,-602.85,0.00035616,14]
[337600288,1725888641422,-796.58,0.00035616,14]
[337600289,1725888641434,-500.0,0.00035616,14]
[337600290,1725888641446,-500.0,0.00035616,10]
[337600291,1725888641455,-819.58,0.00035616,14]
[337600292,1725888641475,-500.0,0.00035616,14]
[337600293,1725888641486,-501.26264946,0.00035616,14]
[337600294,1725888641497,-500.0,0.00035616,14]
[337600295,1725888641506,-500.0,0.00035616,14]
[337600296,1725888641517,-500.0,0.00035616,14]
[337600297,1725888641527,-500.0,0.00035616,14]
[337600298,1725888641537,-500.0,0.00035616,14]
[337600299,1725888641548,-500.0,0.00035616,14]
[337600300,1725888641558,-1076.49,0.00035616,14]
[337600301,1725888641567,-500.0,0.00035616,14]
[337600302,1725888641577,-500.0,0.00035616,14]
[337600303,1725888641587,-23632.32,0.00035616,14]
[337600304,1725888641597,-504.75987686,0.00035616,14]
[337600305,1725888641607,-831.47,0.00035616,14]
[337600306,1725888641618,-500.0,0.00035616,14]
[337600307,1725888641629,-500.0,0.00035616,14]
[337600308,1725888641639,-500.0,0.00035616,14]
[337600309,1725888641648,-557.59,0.00035616,14]
[337600310,1725888641662,-5456.41,0.00035616,14]
[337600311,1725888641672,-501.44101717,0.00035616,14]
[337600312,1725888641685,-568.18,0.00035616,14]
[337600313,1725888641695,-500.0,0.00035616,14]
[337600314,1725888641706,-500.0,0.00035616,14]
[337600315,1725888641716,-2501.05,0.00035616,14]
[337600316,1725888641726,-502.08844306,0.00035616,14]
[337600317,1725888641736,-1599.98,0.00035616,14]
[337600318,1725888641745,-521.75146082,0.00035616,14]
[337600319,1725888641755,-530.0,0.00035616,14]
[337600320,1725888641765,-500.0,0.00035616,14]
[337600321,1725888641775,-512.76458089,0.00035616,14]
[337600322,1725888641785,-504.69781228,0.00035616,14]
[337600323,1725888641795,-5095.06,0.00035616,14]
[337600324,1725888641805,-2589.34,0.00035616,14]
[337600325,1725888641815,-500.0,0.00035616,14]
[337600326,1725888641825,-500.0,0.00035616,14]
[337600327,1725888641837,-500.0,0.00035616,14]
[337600328,1725888641847,-500.0,0.00035616,14]
[337600329,1725888641857,-504.22030287,0.00035616,14]
[337600330,1725888641867,-500.0,0.00035616,14]
[337600331,1725888641877,-3737.71,0.00035616,14]
[337600332,1725888641887,-500.0,0.00035616,14]
[337600333,1725888641897,-996.96,0.00035616,14]
[337600334,1725888641907,-500.0,0.00035616,14]
[337600335,1725888641917,-3001.35,0.00035616,14]
[337600336,1725888641927,-625.01165026,0.00035616,14]
[337600337,1725888641939,-500.0,0.00035616,14]
[337600338,1725888641949,-10024.24,0.00035616,14]
[337600339,1725888641959,-500.0,0.00035616,14]
[337600340,1725888641969,-1708.68,0.00035616,14]
[337600341,1725888641979,-500.0,0.00035616,14]
[337600342,1725888641988,-645.93,0.00035616,14]
[337600343,1725888641998,-1173.15,0.00035616,14]
[337600344,1725888642008,-500.0,0.00035616,14]
[337600345,1725888642017,-500.0,0.00035616,14]
[337600346,1725888642026,-500.0,0.00035616,2]
[337600347,1725888642036,-333.68941006,0.00035616,14]
[337600348,1725888642045,-1101.36,0.00035616,14]
[337600349,1725888642055,-1177.84,0.00035616,14]
[337600350,1725888642066,-500.0,0.00035616,14]
[337600351,1725888642079,-507.8829069,0.00035616,14]
[337600352,1725888642090,-946.12,0.00035616,14]
[337600353,1725888642101,-287.47311274,0.00035616,14]
[337600354,1725888642111,-929.42,0.00035616,14]
[337600355,1725888642121,-999.0,0.00035616,14]
[337600356,1725888642130,-151.0,0.00035616,2]
[337600357,1725888642140,-151.0,0.00035616,2]
[337600358,1725888642151,-1286.18,0.00035616,14]
[337600359,1725888642161,-1496.29,0.00035616,14]
[337600360,1725888642172,-500.0,0.00035616,14]
[337600361,1725888642182,-500.0,0.00035616,14]
[337600362,1725888642194,-151.0,0.00035616,14]
[337600363,1725888642204,-500.0,0.00035616,14]
[337600364,1725888642214,-500.0,0.00035616,14]
[337600365,1725888642224,-5289.18,0.00035616,14]
[337600366,1725888642234,-500.0,0.00035616,14]
[337600367,1725888642244,-565.41,0.00035616,14]
[337600368,1725888642254,-500.0,0.00035616,14]
[337600369,1725888642263,-500.0,0.00035616,14]
[337600370,1725888642274,-1108.89,0.00035616,14]
[337600371,1725888642285,-500.0,0.00035616,14]
[337600372,1725888642295,-500.0,0.00035616,14]
[337600373,1725888642305,-702.79,0.00035616,14]
[337600374,1725888642314,-3401.54,0.00035616,14]
[337600376,1725888642324,-389.313991,0.00035616,14]
[337600378,1725888642334,-389.313991,0.00035616,14]
[337600380,1725888642344,-500.0,0.00035616,14]
[337600381,1725888642355,-2068.56,0.00035616,14]
[337600382,1725888642364,-500.0,0.00035616,14]
[337600383,1725888642373,-500.0,0.00035616,14]
[337600385,1725888642383,-389.313991,0.00035616,14]
[337600387,1725888642393,-389.313991,0.00035616,14]
[337600389,1725888642403,-500.0,0.00035616,14]
[337600390,1725888642413,-1032.1,0.00035616,14]
[337600391,1725888642423,-500.0,0.00035616,14]
[337600392,1725888642432,-1565.33,0.00035616,14]
[337600393,1725888642444,-500.0,0.00035616,14]
[337600394,1725888642454,-500.0,0.00035616,14]
[337600395,1725888642463,-543.05,0.00035616,14]
[337600396,1725888642473,-500.0,0.00035616,14]
[337600397,1725888642482,-7348.9,0.00035616,14]
[337600398,1725888642492,-1067.14,0.00035616,14]
[337600399,1725888642502,-1818.59,0.00035616,14]
[337600400,1725888642511,-1617.31,0.00035616,14]
[337600401,1725888642525,-2011.46,0.00035616,14]
[337600402,1725888642535,-541.02,0.00035616,14]
[337600403,1725888642545,-500.0,0.00035616,14]
[337600404,1725888642555,-500.0,0.00035616,14]
[337600405,1725888642564,-1684.99,0.00035616,14]
[337600406,1725888642574,-500.0,0.00035616,14]
[337600407,1725888642584,-1259.46,0.00035616,14]
[337600408,1725888642593,-859.21,0.00035616,14]
[337600409,1725888642603,-500.0,0.00035616,14]
[337600410,1725888642613,-6244.99,0.00035616,14]
[337600411,1725888642624,-6244.99,0.00035616,14]
[337600412,1725888642633,-6244.99,0.00035616,14]
[337600413,1725888642643,-6244.99,0.00035616,14]
[337600414,1725888642653,-6244.99,0.00035616,14]
[337600415,1725888642667,-6244.99,0.00035616,14]
[337600416,1725888642677,-6244.99,0.00035616,14]
[337600417,1725888642689,-6244.99,0.00035616,14]
[337600418,1725888642699,-6244.99,0.00035616,14]
[337600419,1725888642709,-6244.99,0.00035616,14]
[337600420,1725888642719,-6244.99,0.00035616,14]
[337600421,1725888642728,-6244.99,0.00035616,14]
[337600422,1725888642742,-6244.99,0.00035616,14]
[337600423,1725888642753,-6244.99,0.00035616,14]
[337600424,1725888642763,-6244.99,0.00035616,14]
[337600425,1725888642773,-6244.99,0.00035616,14]
[337600426,1725888642783,-6244.99,0.00035616,14]
[337600427,1725888642793,-500.0,0.00035616,14]
[337600428,1725888642803,-6244.99,0.00035616,14]
[337600429,1725888642813,-6244.99,0.00035616,14]
[337600430,1725888642823,-622.3682398,0.00035616,14]
[337600431,1725888642832,-6244.99,0.00035616,14]
[337600432,1725888642842,-6244.99,0.00035616,14]
[337600433,1725888642851,-6244.99,0.00035616,14]
[337600434,1725888642862,-6244.99,0.00035616,14]
[337600435,1725888642871,-6245.12187796,0.00035616,14]
[337600436,1725888642881,-1518.68,0.00035616,14]
[337600437,1725888642891,-807.78,0.00035616,14]
[337600438,1725888642900,-500.0,0.00035616,14]
[337600439,1725888642910,-500.0,0.00035616,14]
[337600440,1725888642920,-548.41,0.00035616,14]
[337600441,1725888642929,-1026.64,0.00035616,14]
[337600442,1725888642942,-719.8,0.00035616,14]
[337600443,1725888642951,-500.0,0.00035616,14]
[337600444,1725888642961,-1381.29,0.00035616,14]
[337600445,1725888642970,-500.0,0.00035616,14]
[337600446,1725888642980,-533.48,0.00035616,14]
[337600447,1725888642989,-500.0,0.00035616,14]
[337600448,1725888642999,-500.0,0.00035616,14]
[337600449,1725888643008,-502.46728596,0.00035616,14]
[337600450,1725888643018,-744.09,0.00035616,14]
[337600451,1725888643028,-1198.04,0.00035616,14]
[337600452,1725888643037,-589.5,0.00035616,14]
[337600453,1725888643048,-500.0,0.00035616,14]
[337600454,1725888643057,-151.0,0.00035616,14]
[337600455,1725888643067,-152.324702,0.00035616,14]
[337600456,1725888643077,-2007.96,0.00035616,14]
[337600457,1725888643087,-2032.16,0.00035616,14]
[337600458,1725888643096,-500.0,0.00035616,14]
[337600459,1725888643106,-1262.52,0.00035616,14]
[337600460,1725888643116,-597.46422064,0.00035616,14]
[337600461,1725888643125,-650.68,0.00035616,14]
[337600462,1725888643136,-500.0,0.00035616,14]
[337600463,1725888643325,-501.05563708,0.00035616,14]
[337600464,1725888643335,-46937.18,0.00035616,14]
[337600465,1725888643344,-500.0,0.00035616,14]
[337600466,1725888643353,-1208.94,0.00035616,14]
[337600467,1725888643362,-500.0,0.00035616,14]
[337600468,1725888643371,-500.0,0.00035616,14]
[337600469,1725888643380,-84278.99,0.00035616,14]
[337600470,1725888643389,-198.688948,0.00035616,2]
[337600471,1725888643398,-1106.37,0.00035616,14]
[337600472,1725888643407,-61377.96,0.00035616,14]
[337600473,1725888643416,-500.0,0.00035616,14]
[337600474,1725888643426,-501.79348152,0.00035616,14]
[337600475,1725888643436,-4147.6,0.00035616,14]
[337600476,1725888643454,-500.0,0.00035616,14]
[337600477,1725888643463,-2103.78,0.00035616,14]
[337600478,1725888643472,-1427.24,0.00035616,14]
[337600479,1725888643481,-632.26,0.00035616,14]
[337600480,1725888643491,-500.0,0.00035616,14]
[337600481,1725888643499,-500.0,0.00035616,14]
[337600482,1725888643508,-500.0,0.00035616,14]
[337600483,1725888643517,-2237.3,0.00035616,14]
[337600484,1725888643527,-500.0,0.00035616,14]
[337600485,1725888643536,-1511.46,0.00035616,14]
[337600486,1725888643545,-2487.04,0.00035616,14]
[337600487,1725888643554,-500.0,0.00035616,14]
[337600488,1725888643563,-500.0,0.00035616,14]
[337600489,1725888643572,-500.0,0.00035616,14]
[337600490,1725888643582,-628.71,0.00035616,14]
[337600491,1725888643591,-750.128575,0.00035616,2]
[337600492,1725888643600,-500.0,0.00035673,5]
[337600493,1725888643610,-500.0,0.00035673,5]
[337600494,1725888643620,-500.0,0.00035673,5]
[337600495,1725888643629,-500.0,0.00035673,5]
[337600496,1725888643638,-501.83291487,0.00035673,5]
[337600497,1725888643647,-500.0,0.00035673,5]
[337600498,1725888643660,-184.944685,0.00035682,14]
[337600499,1725888643669,-986.95921677,0.00035789,2]
[337600500,1725888643679,-150.112233,0.000358,7]
[337600501,1725888643693,-150.112236,0.000358,6]
[337600502,1725888643703,-150.112233,0.000358,5]
[337600503,1725888643712,-150.112234,0.000358,10]
[337600504,1725888643722,-166.666666,0.00035837,2]
[337600505,1725888643733,-151.0,0.00035869,14]
[337600506,1725888643742,-221.380265,0.00035869,14]
[337600507,1725888643751,-221.380265,0.00035869,14]
[337600508,1725888643760,-151.0,0.00035869,14]
[337600509,1725888643769,-217.665348,0.00035869,14]
[337600510,1725888643779,-217.665348,0.00035869,14]
[337600511,1725888643788,-3962.868403,0.00035869,14]
[337600512,1725888643797,-3962.868403,0.00035869,14]
[337600513,1725888643806,-500.53596247,0.00035873,5]
[337600514,1725888643815,-500.0,0.00035873,5]
[337600515,1725888643825,-501.66479479,0.00035873,5]
[337600516,1725888643835,-500.0,0.00035873,5]
[337600517,1725888643844,-500.0,0.00035873,5]
[337600518,1725888643854,-305.011856,0.00035873,14]
[337600519,1725888643863,-305.011856,0.00035873,14]
[337600520,1725888643872,-151.0,0.00035873,14]
[337600521,1725888643882,-151.0,0.00035873,14]
[337600522,1725888643891,-151.0,0.00035873,14]
[337600523,1725888643901,-177.173024,0.00035873,14]
[337600524,1725888643911,-177.173024,0.00035873,14]
[337600525,1725888643920,-151.0,0.00035873,14]
[337600526,1725888643929,-151.0,0.00035873,14]
[337600527,1725888643940,-151.0,0.00035873,14]
[337600528,1725888643949,-281.832942,0.00035873,14]
[337600529,1725888643959,-281.832942,0.00035873,14]
[337600530,1725888643968,-151.0,0.00035873,14]
[337600531,1725888643977,-151.0,0.00035873,14]
[337600532,1725888643986,-151.0,0.00035873,14]
[337600533,1725888643996,-151.0,0.00035873,14]
[337600534,1725888644005,-4163.164683,0.00035873,14]
[337600535,1725888644015,-4163.164683,0.00035873,14]
[337600536,1725888644023,-151.0,0.00035873,14]
[337600537,1725888644033,-151.0,0.00035873,14]
[337600538,1725888644043,-151.762696,0.00035873,14]
[337600539,1725888644052,-151.0,0.00035873,14]
[337600540,1725888644061,-151.762696,0.00035873,14]
[337600541,1725888644070,-151.0,0.00035873,14]
[337600542,1725888644079,-151.293637,0.00035878,2]
[337600543,1725888644088,-389.313991,0.00035878,14]
[337600544,1725888644097,-389.313991,0.00035878,14]
[337600545,1725888644107,-479.321179,0.00035879,14]
[337600546,1725888644115,-151.0,0.00035879,14]
[337600547,1725888644125,-479.321179,0.00035879,14]
[337600548,1725888644134,-221.380265,0.00035879,14]
[337600549,1725888644143,-221.380265,0.00035879,14]
[337600550,1725888644152,-151.0,0.00035879,14]
[337600551,1725888644161,-184.944685,0.00035879,14]
[337600552,1725888644170,-217.665348,0.00035879,14]
[337600553,1725888644179,-217.665348,0.00035879,14]
[337600554,1725888644189,-3962.868403,0.00035879,14]
[337600555,1725888644198,-3962.868403,0.00035879,14]
[337600556,1725888644207,-932.83,0.00035888,14]
[337600557,1725888644217,-500.0,0.00035888,5]
[337600558,1725888644226,-500.0,0.00035888,5]
[337600559,1725888644236,-932.83,0.00035889,14]
[337600560,1725888644246,-932.83,0.00035889,14]
[337600561,1725888644255,-419.170424,0.00035889,14]
[337600562,1725888644264,-419.170424,0.00035889,14]
[337600563,1725888644274,-327.273999,0.00035889,14]
[337600564,1725888644283,-327.273999,0.00035889,14]
[337600565,1725888644292,-305.011856,0.00035889,14]
[337600566,1725888644301,-305.011856,0.00035889,14]
[337600567,1725888644311,-151.0,0.00035889,14]
[337600568,1725888644320,-151.0,0.00035889,14]
[337600569,1725888644330,-151.0,0.00035889,14]
[337600570,1725888644339,-177.173024,0.00035889,14]
[337600571,1725888644349,-177.173024,0.00035889,14]
[337600572,1725888644358,-151.0,0.00035889,14]
[337600573,1725888644367,-151.0,0.00035889,14]
[337600574,1725888644376,-151.0,0.00035889,14]
[337600575,1725888644386,-281.832942,0.00035889,14]
[337600576,1725888644395,-281.832942,0.00035889,14]
[337600577,1725888644404,-151.0,0.00035889,14]
[337600578,1725888644413,-151.0,0.00035889,14]
[337600579,1725888644423,-389.313991,0.00035889,14]
[337600580,1725888644433,-389.313991,0.00035889,14]
[337600581,1725888644444,-151.0,0.00035889,14]
[337600582,1725888644453,-151.0,0.00035889,14]
[337600583,1725888644462,-4163.164683,0.00035889,14]
[337600584,1725888644471,-4163.164683,0.00035889,14]
[337600585,1725888644481,-152.298797,0.00035889,14]
[337600586,1725888644490,-151.0,0.00035889,14]
[337600587,1725888644499,-151.762696,0.00035889,14]
[337600588,1725888644508,-151.0,0.00035889,14]
[337600589,1725888644517,-151.762696,0.00035889,14]
[337600590,1725888644526,-151.0,0.00035889,14]
[337600591,1725888644536,-500.0,0.0003589,14]
[337600592,1725888644545,-500.0,0.0003589,14]
[337600593,1725888644555,-500.0,0.0003589,14]
[337600594,1725888644565,-500.0,0.0003589,14]
[337600595,1725888644574,-500.0,0.0003589,14]